bitfinex-derivatives/quotes_BNBF0:USTF0_20230901
["timestamp","ask_amount","ask_price","bid_price","bid_amount"]
[1693558159561,0.07647832,214.4,212.19,1.71399213]
[1693558162270,0.07647832,214.4,212.2,1.88557895]
[1693558162563,0.07647832,214.4,212.21,0.17158682]
[1693558162768,0.07647832,214.4,212.22,0.17158682]
[1693558162969,0.07647832,214.4,212.23,0.17158682]
[1693558163169,0.07647832,214.4,212.24,0.17158682]
[1693558163369,0.07647832,214.4,212.25,0.17158682]
[1693558163573,0.07647832,214.4,212.26,0.17158682]
[1693558163763,0.07647832,214.4,212.27,0.17158682]
[1693558163964,0.07647832,214.4,212.28,0.17158682]
[1693558164164,0.07647832,214.4,212.29,0.17158682]
[1693558164363,0.07647832,214.4,212.2,1.71399213]
[1693558172881,0.5098555,214.44,212.2,1.71399213]
[1693558172882,0.07647832,214.39,212.2,1.71399213]
[1693558173475,0.07647832,214.39,212.19,1.71399213]
[1693558174080,0.07647832,214.4,212.19,1.71399213]
[1693558180584,0.07647832,214.4,212.2,1.71399213]
[1693558191995,0.07647832,214.39,212.21,0.17158682]
[1693558192295,0.07647832,214.39,212.22,0.17158682]
[1693558192494,0.07647832,214.39,212.19,1.71399213]
[1693558199402,0.07647832,214.38,212.19,1.71399213]
[1693558199699,0.07647832,214.36,212.19,1.71399213]
[1693558199893,0.07647832,214.35,212.19,1.71399213]
[1693558200701,0.07647832,214.36,212.19,1.71399213]
[1693558202099,0.07647832,214.37,212.19,1.71399213]
[1693558203107,0.07647832,214.37,212.2,0.17158682]
[1693558203403,0.07647832,214.38,212.21,0.17158682]
[1693558203603,0.07647832,214.38,212.22,0.17158682]
[1693558203804,0.07647832,214.38,212.14,1.71399213]
[1693558205500,0.07647832,214.39,212.14,1.71399213]
[1693558207604,0.07647832,214.4,212.14,1.71399213]
[1693558210501,0.07647832,214.41,212.14,1.71399213]
[1693558210702,0.07647832,214.4,212.14,1.71399213]
[1693558213508,0.07647832,214.39,212.14,1.71399213]
[1693558216509,0.07647832,214.38,212.14,1.71399213]
[1693558218718,0.07511297,214.38,212.14,1.71399213]
[1693558219518,0.15295665,214.39,212.14,1.71399213]
[1693558221622,0.15295665,214.38,212.14,1.71399213]
[1693558222318,0.15295665,214.38,212.15,0.17158682]
[1693558222524,0.15295665,214.38,212.16,0.17158682]
[1693558222718,0.15295665,214.38,212.13,1.71399213]
[1693558223625,0.15295665,214.37,212.13,1.71399213]
[1693558225525,0.15295665,214.36,212.13,1.71399213]
[1693558227526,0.15295665,214.35,212.13,1.71399213]
[1693558229423,0.15295665,214.34,212.13,1.71399213]
[1693558230526,0.15295665,214.34,210.63,0.17158682]
[1693558230527,0.15295665,214.34,212.14,0.17158682]
[1693558230725,0.15295665,214.33,212.15,0.17158682]
[1693558230926,0.15295665,214.33,212.12,1.71399213]
[1693558232727,0.15295665,214.32,212.12,1.71399213]
[1693558233629,0.15295665,214.3,212.12,1.71399213]
[1693558234128,0.15295665,214.29,212.12,1.71399213]
[1693558239929,0.15295665,214.29,212.13,0.17158682]
[1693558240134,0.15295665,214.29,212.14,0.17158682]
[1693558240333,0.15295665,214.29,212.11,1.71399213]
[1693558241834,0.15295665,214.3,212.11,1.71399213]
[1693558245733,0.15295665,214.31,212.11,1.71399213]
[1693558248739,0.5098555,214.34,212.11,1.71399213]
[1693558248740,0.15295665,214.32,212.11,1.71399213]
[1693558249539,0.15295665,214.33,212.11,1.71399213]
[1693558251740,0.15295665,214.34,212.11,1.71399213]
[1693558252440,0.15295665,214.33,212.11,1.71399213]
[1693558252646,0.15295665,214.34,212.11,1.71399213]
[1693558253545,0.15295665,214.35,212.11,1.71399213]
[1693558257344,2.54927753,214.46,212.11,1.71399213]
[1693558257345,0.15295665,214.29,212.11,1.71399213]
[1693558257550,0.15295665,214.3,212.11,1.71399213]
[1693558257951,0.15295665,214.3,212.04,1.71399213]
[1693558258346,0.15295665,214.31,212.04,1.71399213]
[1693558259647,0.15295665,214.32,212.04,1.71399213]
[1693558262150,0.15295665,214.32,212.05,1.88557895]
[1693558262354,0.15295665,214.32,212.06,0.17158682]
[1693558262555,0.15295665,214.32,212.05,1.71399213]
[1693558262954,0.15295665,214.31,212.05,1.71399213]
[1693558263749,0.15295665,214.3,212.05,1.71399213]
[1693558265755,0.15295665,214.29,212.05,1.71399213]
[1693558266558,0.15295665,214.29,210.62,0.43415671]
[1693558266559,0.15295665,214.29,212.04,1.71399213]
[1693558266753,0.15295665,214.28,212.04,1.71399213]
[1693558269055,0.15295665,214.27,212.04,1.71399213]
[1693558270454,0.15295665,214.26,212.04,1.71399213]
[1693558270654,0.15295665,214.27,212.04,1.71399213]
[1693558270858,0.15295665,214.26,212.04,1.71399213]
[1693558271357,0.15295665,214.26,212.03,1.71399213]
[1693558271753,0.15295665,214.25,212.03,1.71399213]
[1693558273655,0.15295665,214.26,212.03,1.71399213]
[1693558273853,0.15295665,214.25,212.03,1.71399213]
[1693558274252,0.15295665,214.26,212.03,1.71399213]
[1693558274454,0.15295665,214.25,212.03,1.71399213]
[1693558275853,0.15295665,214.25,212.04,1.71399213]
[1693558276457,0.15295665,214.24,212.04,1.71399213]
[1693558278454,0.15295665,214.23,212.04,1.71399213]
[1693558278655,0.15295665,214.24,212.04,1.71399213]
[1693558278860,3.56898855,214.37,212.04,1.71399213]
[1693558279062,0.15239123,214.23,212.04,1.71399213]
[1693558281761,0.15239123,214.22,212.04,1.71399213]
[1693558284358,0.15239123,214.21,212.04,1.71399213]
[1693558285265,0.15239123,214.21,212.05,0.17158682]
[1693558285563,0.15239123,214.21,212.06,0.17158682]
[1693558285762,0.15239123,214.21,212.07,0.17158682]
[1693558286061,0.15239123,214.21,212.08,0.17158682]
[1693558286262,0.15239123,214.21,212.03,1.71399213]
[1693558286661,0.15239123,214.2,212.03,1.71399213]
[1693558288364,0.15239123,214.19,212.03,1.71399213]
[1693558289466,0.15239123,214.18,212.03,1.71399213]
[1693558289965,0.15239123,214.18,212.04,1.88557895]
[1693558290165,0.15239123,214.18,212.04,1.71399213]
[1693558290464,0.15239123,214.16,212.04,1.71399213]
[1693558292267,0.15239123,214.17,212.04,1.71399213]
[1693558293569,0.15239123,214.18,212.04,1.71399213]
[1693558296567,0.15239123,214.19,212.04,1.71399213]
[1693558297671,0.15239123,214.2,212.04,1.71399213]
[1693558299470,0.15239123,214.21,212.04,1.71399213]
[1693558301576,0.15239123,214.22,212.04,1.71399213]
[1693558302676,0.15239123,214.23,212.04,1.71399213]
[1693558304378,0.15239123,214.24,212.04,1.71399213]
[1693558305576,0.15239123,214.25,212.04,1.71399213]
[1693558306177,3.55579546,214.38,212.04,1.71399213]
[1693558306378,0.15305003,214.25,212.04,1.71399213]
[1693558307380,0.15305003,214.26,212.05,1.71399213]
[1693558308475,0.15305003,214.27,212.05,1.71399213]
[1693558309777,0.15305003,214.26,212.05,1.71399213]
[1693558322489,0.15305003,214.27,212.05,1.71399213]
[1693558322790,0.15305003,214.26,212.05,1.71399213]
[1693558338599,0.07654236,214.24,212.05,1.71399213]
[1693558340606,0.07654236,214.25,212.05,1.71399213]
[1693558349106,0.07654236,214.3,212.05,1.71399213]
[1693558350011,0.07654236,214.32,212.1,1.71399213]
[1693558350815,0.07654236,214.33,212.1,1.71399213]
[1693558352017,0.07654236,214.34,212.1,1.71399213]
[1693558353818,0.07654236,214.35,212.1,1.71399213]
[1693558358819,0.07654236,214.36,212.1,1.71399213]
[1693558363721,0.07654236,214.35,212.1,1.71399213]
[1693558366824,0.07654236,214.34,212.1,1.71399213]
[1693558369826,0.07654236,214.33,212.1,1.71399213]
[1693558373126,0.07654236,214.33,212.09,1.71399213]
[1693558373926,0.07654236,214.32,212.09,1.71399213]
[1693558376733,0.07654236,214.32,212.09,1.71399213]
[1693558378035,0.07654236,214.31,212.09,1.71399213]
[1693558380836,0.07654236,214.3,212.09,1.71399213]
[1693558382733,0.07654236,214.29,212.09,1.71399213]
[1693558383640,0.07654236,214.27,212.09,1.71399213]
[1693558386740,0.07654236,214.28,212.09,1.71399213]
[1693558390640,0.07654236,214.28,212.1,1.88557895]
[1693558390833,0.07654236,214.29,212.11,0.17158682]
[1693558391038,0.07654236,214.29,212.12,0.17158682]
[1693558391236,0.07654236,214.29,212.1,1.71399213]
[1693558392942,0.07654236,214.3,212.1,1.71399213]
[1693558409662,0.07654236,214.31,212.1,1.71399213]
[1693558412665,0.07654236,214.31,212.11,1.88557895]
[1693558412865,0.07654236,214.31,212.12,0.17158682]
[1693558413066,0.07654236,214.31,212.11,1.71399213]
[1693558416869,0.07654236,214.31,212.1,1.71399213]
[1693558418171,0.07654236,214.3,212.1,1.71399213]
[1693558430466,0.07654236,214.31,212.1,1.71399213]
[1693558433377,0.07654236,214.3,212.1,1.71399213]
[1693558434377,0.07654236,214.31,212.1,1.71399213]
[1693558435478,0.07654236,214.3,212.1,1.71399213]
[1693558442782,0.07654236,214.31,212.1,1.71399213]
[1693558443776,0.07654236,214.3,212.1,1.71399213]
[1693558450390,4.26794925,214.67,212.1,1.71399213]
[1693558450592,0.15301984,214.32,212.1,1.71399213]
[1693558450890,0.07650992,214.3,212.1,1.71399213]
[1693558475707,0.07650992,214.38,212.1,1.71399213]
[1693558475913,0.07650992,214.4,212.1,1.71399213]
[1693558476413,0.07650992,214.43,212.1,1.71399213]
[1693558477115,0.07650992,214.44,212.1,1.71399213]
[1693558477511,0.07650992,214.45,212.1,1.71399213]
[1693558478315,0.07650992,214.46,212.1,1.71399213]
[1693558478815,0.07650992,214.46,212.19,1.71399213]
[1693558480215,0.07650992,214.45,212.19,1.71399213]
[1693558481316,0.07650992,214.44,212.19,1.71399213]
[1693558482416,0.07650992,214.43,212.19,1.71399213]
[1693558483516,0.07650992,214.42,212.19,1.71399213]
[1693558484517,0.07650992,214.41,212.19,1.71399213]
[1693558486518,0.07650992,214.4,212.19,1.71399213]
[1693558487418,0.07650992,214.39,212.19,1.71399213]
[1693558487718,0.07650992,214.39,212.18,1.71399213]
[1693558489420,0.07650992,214.38,212.18,1.71399213]
[1693558491220,0.07650992,214.37,212.18,1.71399213]
[1693558493221,0.07650992,214.36,212.18,1.71399213]
[1693558495221,0.07650992,214.35,212.18,1.71399213]
[1693558497522,0.07650992,214.34,212.18,1.71399213]
[1693558498323,0.07650992,214.35,212.18,1.71399213]
[1693558498523,0.07650992,214.34,212.18,1.71399213]
[1693558500526,0.07650992,214.33,212.18,1.71399213]
[1693558500722,2.55033077,214.47,212.18,1.71399213]
[1693558500925,0.07603573,214.33,212.18,1.71399213]
[1693558503426,0.07603573,214.32,212.18,1.71399213]
[1693558504327,0.07603573,214.31,212.18,1.71399213]
[1693558506321,0.07603573,214.3,212.18,1.71399213]
[1693558507526,0.07603573,214.29,212.18,1.71399213]
[1693558508328,0.07603573,214.28,212.18,1.71399213]
[1693558509527,0.07603573,214.26,212.18,1.71399213]
[1693558510331,0.07603573,214.22,212.18,1.71399213]
[1693558512330,0.07603573,214.23,212.18,1.71399213]
[1693558515537,0.07603573,214.24,212.18,1.71399213]
[1693558518135,0.07603573,214.25,212.18,1.71399213]
[1693558520440,0.07603573,214.26,212.18,1.71399213]
[1693558521435,0.07603573,214.27,212.18,1.71399213]
[1693558523337,0.07603573,214.28,212.18,1.71399213]
[1693558524442,0.07603573,214.29,212.18,1.71399213]
[1693558525339,0.07603573,214.3,212.18,1.71399213]
[1693558526545,0.07603573,214.31,212.18,1.71399213]
[1693558527439,0.07603573,214.32,212.18,1.71399213]
[1693558528346,0.07603573,214.34,212.18,1.71399213]
[1693558528540,0.07603573,214.34,212.19,1.88557895]
[1693558528740,0.07603573,214.34,212.2,0.17158682]
[1693558529046,0.07603573,214.34,212.21,0.17158682]
[1693558529246,0.07603573,214.34,212.19,1.71399213]
[1693558529446,0.07603573,214.35,212.19,1.71399213]
[1693558530340,0.07603573,214.36,212.19,1.71399213]
[1693558530546,0.07603573,214.37,212.19,1.71399213]
[1693558531347,0.07603573,214.38,212.19,1.71399213]
[1693558532447,0.07603573,214.4,212.19,1.71399213]
[1693558537651,0.07603573,214.4,212.2,1.88557895]
[1693558537851,0.07603573,214.4,212.21,0.17158682]
[1693558538054,0.07603573,214.4,212.2,1.71399213]
[1693558551764,2.53452458,214.53,212.2,1.71399213]
[1693558551966,0.07648038,214.4,212.2,1.71399213]
[1693558560772,0.07648038,214.41,212.2,1.71399213]
[1693558562667,0.07648038,214.41,212.21,1.88557895]
[1693558562869,0.07648038,214.41,212.21,1.71399213]
[1693558565169,0.07648038,214.42,212.21,1.71399213]
[1693558588699,0.07648038,214.41,212.21,1.71399213]
[1693558591004,0.07648038,214.41,212.2,1.71399213]
[1693558603114,0.07648038,214.41,212.21,1.71399213]
[1693558611119,0.15296077,214.44,212.21,1.71399213]
[1693558611120,0.07648038,214.42,212.21,1.71399213]
[1693558622931,0.07648038,214.42,212.35,2.0]
[1693558623131,0.07648038,214.42,212.36,0.17158682]
[1693558634232,0.07648038,214.43,212.36,0.17158682]
[1693558637840,0.07648038,214.44,212.36,0.17158682]
[1693558638041,0.07648038,214.48,212.36,0.17158682]
[1693558638540,0.07648038,214.5,212.36,0.17158682]
[1693558639437,0.07648038,214.51,212.36,0.17158682]
[1693558640443,0.07648038,214.48,212.36,0.17158682]
[1693558640638,0.07648038,214.47,212.36,0.17158682]
[1693558645048,0.07648038,214.46,212.36,0.17158682]
[1693558673566,1.01973848,214.53,212.36,0.17158682]
[1693558673567,0.07648038,214.45,212.36,0.17158682]
[1693558674371,0.15296077,214.47,212.36,0.17158682]
[1693558674372,0.07648038,214.44,212.36,0.17158682]
[1693558675471,0.07648038,214.42,212.36,0.17158682]
[1693558682475,2.5493462,214.55,212.36,0.17158682]
[1693558682678,0.07647661,214.42,212.36,0.17158682]
[1693558685980,2.54922046,214.55,212.36,0.17158682]
[1693558686174,0.07647528,214.42,212.36,0.17158682]
[1693558702401,0.07647528,214.43,212.36,0.17158682]
[1693558704899,0.07647528,214.42,212.36,0.17158682]
[1693558706499,0.07647528,214.43,212.36,0.17158682]
[1693558736516,0.07647528,214.44,212.36,0.17158682]
[1693558736722,0.07647528,214.43,212.36,0.17158682]
[1693558736920,0.07647528,214.5,212.36,0.17158682]
[1693558737625,0.07647528,214.51,212.36,0.17158682]
[1693558737820,0.07647528,214.52,212.36,0.17158682]
[1693558739927,0.07647528,214.53,212.36,0.17158682]
[1693558743030,0.07647528,214.54,212.36,0.17158682]
[1693558744926,0.07647528,214.55,212.36,0.17158682]
[1693558746024,0.07647528,214.54,212.36,0.17158682]
[1693558747930,0.07647528,214.53,212.36,0.17158682]
[1693558749825,0.07647528,214.52,212.36,0.17158682]
[1693558752832,0.07647528,214.51,212.36,0.17158682]
[1693558755935,0.07647528,214.5,212.36,0.17158682]
[1693558761039,0.07647528,214.49,212.36,0.17158682]
[1693558764843,0.07647528,214.48,212.36,0.17158682]
[1693558766846,0.07647528,214.47,212.36,0.17158682]
[1693558768742,0.07647528,214.46,212.36,0.17158682]
[1693558769848,0.07647528,214.45,212.36,0.17158682]
[1693558770849,0.07647528,214.43,212.36,0.17158682]
[1693558774850,0.07647528,214.44,212.36,0.17158682]
[1693558778854,0.07647528,214.45,212.36,0.17158682]
[1693558781252,0.07647528,214.46,212.36,0.17158682]
[1693558782961,0.07647528,214.47,212.36,0.17158682]
[1693558783761,0.07647528,214.46,212.36,0.17158682]
[1693558784056,0.07647528,214.47,212.36,0.17158682]
[1693558784961,0.07647528,214.48,212.36,0.17158682]
[1693558785959,0.07647528,214.49,212.36,0.17158682]
[1693558787956,2.54917612,214.62,212.36,0.17158682]
[1693558787957,0.07647528,214.5,212.36,0.17158682]
[1693558805775,0.07647528,214.51,212.36,0.17158682]
[1693558809484,0.07647528,214.52,212.36,0.17158682]
[1693558813785,0.07647528,214.51,212.36,0.17158682]
[1693558814187,0.07647528,214.52,212.36,0.17158682]
[1693558815287,0.07647528,214.51,212.36,0.17158682]
[1693558825592,0.07647528,214.52,212.36,0.17158682]
[1693558825993,0.07647528,214.51,212.36,0.17158682]
[1693558836899,0.07647528,214.5,212.36,0.17158682]
[1693558844303,0.07647528,214.51,212.36,0.17158682]
[1693558845803,0.07647528,214.5,212.36,0.17158682]
[1693558856812,0.15295056,214.53,212.36,0.17158682]
[1693558856813,0.07647528,214.51,212.36,0.17158682]
[1693558892834,0.07647528,214.5,212.36,0.17158682]
[1693558893636,0.07647528,214.51,212.36,0.17158682]
[1693558894035,0.07647528,214.5,212.36,0.17158682]
[1693558894533,0.07647528,214.51,212.36,0.17158682]
[1693558894838,0.07647528,214.5,212.36,0.17158682]
[1693558900943,0.07647528,214.51,212.36,0.17158682]
[1693558907047,0.07647528,214.5,212.36,0.17158682]
[1693558912051,0.07647528,214.51,212.36,0.17158682]
[1693558926961,0.07647528,214.52,212.36,0.17158682]
[1693558931571,0.07647528,214.51,212.36,0.17158682]
[1693558945681,0.07647528,214.5,212.36,0.17158682]
[1693558946081,0.07647528,214.51,212.36,0.17158682]
[1693558946480,0.15295056,214.53,212.36,0.17158682]
[1693558946481,0.07647528,214.5,212.36,0.17158682]
[1693558947882,0.07647528,214.51,212.36,0.17158682]
[1693558967699,0.07647528,214.5,212.36,0.17158682]
[1693558967903,0.07647528,214.51,212.36,0.17158682]
[1693558977913,0.07647528,214.52,212.36,0.17158682]
[1693558978112,0.07647528,214.51,212.36,0.17158682]
[1693558989718,0.07547413,214.51,212.36,0.17158682]
[1693558991718,2.54917612,214.64,212.36,0.17158682]
[1693558991917,4.28807066,219.08,212.36,0.17158682]
[1693558993223,0.15286769,214.53,212.36,0.17158682]
[1693558993719,0.15286769,214.54,212.36,0.17158682]
[1693558995116,0.15286769,214.53,212.36,0.17158682]
[1693558996419,0.15286769,214.52,212.36,0.17158682]
[1693558997423,0.15286769,214.53,212.36,0.17158682]
[1693558997724,0.15286769,214.53,212.36,0.16992879]
[1693559014133,0.15286769,214.53,212.36,0.16992879]
[1693559029449,0.15286769,214.52,212.36,0.16992879]
[1693559032855,0.15286769,214.51,212.36,0.16992879]
[1693559033055,0.15286769,214.47,212.36,0.16992879]
[1693559033356,0.15286769,214.49,212.36,0.16992879]
[1693559033556,0.15286769,214.48,212.36,0.16992879]
[1693559034453,0.15286769,214.49,212.36,0.16992879]
[1693559035253,0.15286769,214.5,212.36,0.16992879]
[1693559036459,0.15286769,214.51,212.36,0.16992879]
[1693559038255,0.15286769,214.52,212.36,0.16992879]
[1693559043261,0.15286769,214.51,212.36,0.16992879]
[1693559045265,0.15286769,214.5,212.36,0.16992879]
[1693559048361,0.15286769,214.49,212.36,0.16992879]
[1693559050065,0.15286769,214.48,212.36,0.16992879]
[1693559050260,0.15286769,214.46,212.36,0.16992879]
[1693559053267,0.15286769,214.45,212.36,0.16992879]
[1693559055467,0.15286769,214.44,212.36,0.16992879]
[1693559057171,0.15286769,214.43,212.36,0.16992879]
[1693559058469,0.15286769,214.42,212.36,0.16992879]
[1693559060271,0.15286769,214.41,212.36,0.16992879]
[1693559062276,0.15286769,214.4,212.36,0.16992879]
[1693559063474,0.15286769,214.39,212.36,0.16992879]
[1693559065376,0.15286769,214.38,212.36,0.16992879]
[1693559066276,0.15286769,214.37,212.36,0.16992879]
[1693559067374,0.15286769,214.35,212.36,0.16992879]
[1693559068077,0.15279508,214.35,212.36,0.16992879]
[1693559072277,0.15279508,214.36,212.36,0.16992879]
[1693559076374,0.15279508,214.37,212.36,0.16992879]
[1693559078377,0.50931694,214.4,212.36,0.16992879]
[1693559078378,0.15279508,214.38,212.36,0.16992879]
[1693559080278,0.15279508,214.39,212.36,0.16992879]
[1693559080482,0.15279508,214.38,212.36,0.16992879]
[1693559081279,0.15279508,214.39,212.36,0.16992879]
[1693559082380,0.15279508,214.4,212.36,0.16992879]
[1693559083679,1.01863389,214.46,212.36,0.16992879]
[1693559083680,0.15279508,214.41,212.36,0.16992879]
[1693559085382,0.15279508,214.42,212.36,0.16992879]
[1693559086380,0.15279508,214.44,212.36,0.16992879]
[1693559086981,0.15279508,214.43,212.36,0.16992879]
[1693559087486,0.15279508,214.45,212.36,0.16992879]
[1693559107109,0.15279508,214.44,212.36,0.16992879]
[1693559107699,0.15279508,214.41,212.36,0.16992879]
[1693559107900,0.15279508,214.39,212.36,0.16992879]
[1693559108103,0.15279508,214.38,212.36,0.16992879]
[1693559108499,0.15279508,214.39,212.36,0.16992879]
[1693559108902,0.15279508,214.4,212.36,0.16992879]
[1693559109305,0.15279508,214.41,212.36,0.16992879]
[1693559109907,0.07631145,214.38,212.36,0.16992879]
[1693559110206,0.07631145,214.4,212.36,0.16992879]
[1693559110606,0.07631145,214.39,212.36,0.16992879]
[1693559111609,0.07631145,214.4,212.36,0.16992879]
[1693559111809,0.07631145,214.38,212.36,0.16992879]
[1693559112302,0.07631145,214.39,212.36,0.16992879]
[1693559112505,0.07631145,214.38,212.36,0.16992879]
[1693559112700,0.15279508,214.41,212.36,0.16992879]
[1693559112701,0.07631145,214.37,212.36,0.16992879]
[1693559114310,0.07631145,214.36,212.36,0.16992879]
[1693559114509,0.07631145,214.32,212.36,0.16992879]
[1693559114808,0.22910653,214.32,212.36,0.16992879]
[1693559115012,0.07631145,214.3,212.36,0.16992879]
[1693559115405,0.07631145,214.29,212.36,0.16992879]
[1693559115807,0.07631145,214.28,212.36,0.16992879]
[1693559116310,0.07631145,214.27,212.36,0.16992879]
[1693559116511,0.07631145,214.28,212.36,0.16992879]
[1693559119815,0.07631145,214.23,212.36,0.16992879]
[1693559120116,0.07631145,214.22,212.36,0.16992879]
[1693559120811,0.07631145,214.21,212.36,0.16992879]
[1693559121813,0.07631145,214.2,212.36,0.16992879]
[1693559122820,0.07631145,214.19,212.36,0.16992879]
[1693559123920,0.07631145,214.18,212.36,0.16992879]
[1693559124815,0.07631145,214.17,212.36,0.16992879]
[1693559125420,0.07631145,214.16,212.36,0.16992879]
[1693559126521,0.07631145,214.15,212.36,0.16992879]
[1693559127315,0.07631145,214.14,212.36,0.16992879]
[1693559127924,0.07631145,214.13,212.36,0.16992879]
[1693559131324,0.07631145,214.12,212.36,0.16992879]
[1693559133428,0.07631145,214.11,212.36,0.16992879]
[1693559134230,0.07631145,214.1,212.36,0.16992879]
[1693559137432,0.07631145,214.09,212.36,0.16992879]
[1693559138835,0.07631145,214.08,212.36,0.16992879]
[1693559139731,0.07631145,214.06,212.36,0.16992879]
[1693559140735,0.15279508,214.08,212.36,0.16992879]
[1693559140736,0.07631145,214.04,212.36,0.16992879]
[1693559141836,0.07631145,214.02,212.36,0.16992879]
[1693559142741,0.07631145,214.01,212.36,0.16992879]
[1693559144844,0.07631145,214.0,212.36,0.16992879]
[1693559145745,0.07631145,213.99,212.36,0.16992879]
[1693559147844,0.07631145,213.98,212.36,0.16992879]
[1693559148745,0.07631145,213.96,212.36,0.16992879]
[1693559152347,0.07631145,213.97,212.36,0.16992879]
[1693559153543,0.07631145,213.98,212.36,0.16992879]
[1693559154346,0.07631145,214.0,212.36,0.16992879]
[1693559155347,0.07631145,214.01,212.36,0.16992879]
[1693559155544,0.07631145,214.0,212.36,0.16992879]
[1693559156343,0.07631145,214.02,212.36,0.16992879]
[1693559157341,0.07631145,214.03,212.36,0.16992879]
[1693559158445,0.07631145,214.05,212.36,0.16992879]
[1693559159347,0.07631145,214.07,212.36,0.16992879]
[1693559162350,0.07631145,214.09,212.36,0.16992879]
[1693559163351,0.07631145,214.1,212.36,0.16992879]
[1693559163851,0.07631145,214.12,212.36,0.16992879]
[1693559164746,0.07631145,214.15,212.36,0.16992879]
[1693559165354,0.07631145,214.16,212.36,0.16992879]
[1693559165851,1.01863389,214.27,212.36,0.16992879]
[1693559165852,0.07631145,214.19,212.36,0.16992879]
[1693559166755,0.07631145,214.24,212.36,0.16992879]
[1693559168057,0.07631145,214.26,212.36,0.16992879]
[1693559188869,0.07631145,214.25,212.36,0.16992879]
[1693559198378,0.07631145,214.26,212.36,0.16992879]
[1693559199980,0.50931694,214.3,212.36,0.16992879]
[1693559199981,0.07631145,214.25,212.36,0.16992879]
[1693559202380,0.07631145,214.26,212.36,0.16992879]
[1693559202782,0.07631145,214.25,212.36,0.16992879]
[1693559203181,0.07631145,214.26,212.36,0.16992879]
[1693559204483,0.07631145,214.25,212.36,0.16992879]
[1693559219088,0.07631145,214.24,212.36,0.16992879]
[1693559219291,0.07631145,214.25,212.36,0.16992879]
[1693559221084,0.07631145,214.24,212.36,0.16992879]
[1693559223992,0.07631145,214.25,212.36,0.16992879]
[1693559238206,0.07631145,214.31,212.36,0.16992879]
[1693559238908,0.15279508,214.33,212.36,0.16992879]
[1693559238909,0.07631145,214.32,212.36,0.16992879]
[1693559239705,0.07631145,214.33,212.36,0.16992879]
[1693559240805,0.07631145,214.34,212.36,0.16992879]
[1693559242912,0.07631145,214.35,212.36,0.16992879]
[1693559245015,0.07631145,214.36,212.36,0.16992879]
[1693559246808,0.07631145,214.37,212.36,0.16992879]
[1693559252920,0.07631145,214.36,212.36,0.16992879]
[1693559253220,0.07631145,214.37,212.36,0.16992879]
[1693559253922,0.07631145,214.36,212.36,0.16992879]
[1693559258419,0.07631145,214.35,212.36,0.16992879]
[1693559260325,0.07631145,214.34,212.36,0.16992879]
[1693559262828,0.07631145,214.33,212.36,0.16992879]
[1693559264930,0.07631145,214.32,212.36,0.16992879]
[1693559266626,0.07631145,214.37,212.36,0.16992879]
[1693559267231,0.07631145,214.36,212.36,0.16992879]
[1693559267633,0.07631145,214.37,212.36,0.16992879]
[1693559267834,0.07631145,214.36,212.36,0.16992879]
[1693559268033,0.07631145,214.35,212.36,0.16992879]
[1693559269033,0.07631145,214.34,212.36,0.16992879]
[1693559269733,0.07631145,214.33,212.36,0.16992879]
[1693559270935,0.07631145,214.31,212.36,0.16992879]
[1693559272037,0.07631145,214.3,212.36,0.16992879]
[1693559273036,0.07631145,214.29,212.36,0.16992879]
[1693559273837,0.07631145,214.28,212.36,0.16992879]
[1693559275936,0.07631145,214.27,212.36,0.16992879]
[1693559276437,0.07631145,214.28,212.36,0.16992879]
[1693559276935,0.07631145,214.27,212.36,0.16992879]
[1693559280039,0.07631145,214.26,212.36,0.16992879]
[1693559291243,0.07631145,214.27,212.36,0.16992879]
[1693559293838,0.07631145,214.28,212.36,0.16992879]
[1693559294845,0.07631145,214.27,212.36,0.16992879]
[1693559295045,0.07631145,214.28,212.36,0.16992879]
[1693559295845,0.07631145,214.29,212.36,0.16992879]
[1693559296741,0.07631145,214.3,212.36,0.16992879]
[1693559300053,0.07631145,214.29,212.36,0.16992879]
[1693559300850,0.22910653,214.29,212.36,0.16992879]
[1693559301049,0.07631145,214.27,212.36,0.16992879]
[1693559301247,0.07631145,214.28,212.36,0.16992879]
[1693559303848,0.07631145,214.29,212.36,0.16992879]
[1693559306556,0.07631145,214.3,212.36,0.16992879]
[1693559308756,0.07631145,214.31,212.36,0.16992879]
[1693559310057,0.07631145,214.32,212.36,0.16992879]
[1693559311862,0.07631145,214.33,212.36,0.16992879]
[1693559312760,0.07631145,214.34,212.36,0.16992879]
[1693559313862,0.07631145,214.35,212.36,0.16992879]
[1693559314058,0.07631145,214.34,212.36,0.16992879]
[1693559314258,0.07631145,214.35,212.36,0.16992879]
[1693559315864,0.07631145,214.36,212.36,0.16992879]
[1693559316564,0.07631145,214.37,212.36,0.16992879]
[1693559316764,0.07631145,214.38,212.36,0.16992879]
[1693559317867,0.07631145,214.39,212.36,0.16992879]
[1693559318958,0.07631145,214.4,212.36,0.16992879]
[1693559319664,0.07631145,214.39,212.36,0.16992879]
[1693559319866,0.07631145,214.4,212.36,0.16992879]
[1693559320866,0.07631145,214.42,212.36,0.16992879]
[1693559321461,0.07631145,214.41,212.36,0.16992879]
[1693559321864,0.07631145,214.43,212.36,0.16992879]
[1693559322567,0.07631145,214.42,212.36,0.16992879]
[1693559333373,0.07631145,214.41,212.36,0.16992879]